bitfinex/quotes_SOLUSD_20251117
["timestamp","ask_amount","ask_price","bid_price","bid_amount"]
[1763390816205,0.72,141.65,141.59,11.14770247]
[1763390816498,29.26866247,141.67,141.6,11.14770247]
[1763390816806,6.93329198,141.65,141.54,18.79096]
[1763390816987,6.93329198,141.65,141.59,6.93329198]
[1763390817304,7.65329198,141.65,141.58,6.93329198]
[1763390817600,6.93329198,141.64,141.58,6.93329198]
[1763390817798,25.77425198,141.65,141.58,6.93329198]
[1763390818423,25.05425198,141.65,141.58,6.93329198]
[1763390818574,9.32,141.68,141.61,6.93329198]
[1763390818772,6.93329198,141.66,141.59,6.93329198]
[1763390818984,6.93329198,141.64,141.57,6.93329198]
[1763390819187,6.93329198,141.6,141.55,9.32]
[1763390819396,6.93329198,141.61,141.55,9.32]
[1763390819593,18.84096,141.62,141.55,16.25329198]
[1763390819904,18.84096,141.62,141.55,9.32]
[1763390819905,7.65329198,141.61,141.55,9.32]
[1763390820107,6.93329198,141.63,141.57,6.93329198]
[1763390820308,6.93329198,141.61,141.55,16.92329198]
[1763390820496,26.04211967,141.68,141.6,6.93329198]
[1763390820497,0.72,141.66,141.6,6.93329198]
[1763390820675,6.93329198,141.7,141.64,6.93329198]
[1763390821004,16.25329198,141.76,141.65,6.93329198]
[1763390821230,0.72,141.83,141.73,6.93329198]
[1763390821375,0.2,141.84,141.74,9.99]
[1763390821575,6.93329198,141.82,141.73,9.78882769]
[1763390821809,6.93329198,141.79,141.74,6.93329198]
[1763390822019,0.72,141.83,141.72,9.32]
[1763390822020,18.84096,141.83,141.75,0.67]
[1763390822181,0.72,141.83,141.77,6.93329198]
[1763390822388,6.93329198,141.81,141.72,9.32]
[1763390822591,6.93329198,141.75,141.7,6.93329198]
[1763390822790,11.18683011,141.72,141.66,9.32]
[1763390822984,11.18683011,141.7,141.64,11.18683011]
[1763390823183,28.16096,141.77,141.67,11.18683011]
[1763390823415,11.18683011,141.76,141.71,11.18683011]
[1763390823623,11.18683011,141.75,141.68,0.67]
[1763390823811,11.18683011,141.74,141.68,0.67]
[1763390824216,11.18683011,141.72,141.63,0.67]
[1763390824395,11.18683011,141.72,141.48,16.96]
[1763390824396,11.18683011,141.67,141.61,11.18683011]
[1763390824739,11.18683011,141.62,141.59,9.32]
[1763390825029,11.18683011,141.6,141.55,11.18683011]
[1763390825234,0.72,141.65,141.57,11.18683011]
[1763390825431,11.18683011,141.62,141.57,11.18683011]
[1763390825594,0.72,141.64,141.56,11.18683011]
[1763390825927,0.72,141.64,141.57,11.18683011]
[1763390826100,11.18683011,141.61,141.56,11.18683011]
[1763390826294,0.72,141.64,141.56,11.18683011]
[1763390826497,18.12096,141.67,141.6,11.18683011]
[1763390826731,0.66,141.68,141.57,0.67]
[1763390826732,0.66,141.68,141.62,11.18683011]
[1763390826891,0.66,141.67,141.57,0.67]
[1763390827095,11.18683011,141.66,141.6,11.18683011]
[1763390827297,11.18683011,141.66,141.61,11.18683011]
[1763390827519,11.18683011,141.63,141.57,11.18683011]
[1763390827724,0.66,141.71,141.62,11.18683011]
[1763390827900,2.66,141.83,141.68,11.18683011]
[1763390828100,0.66,141.83,141.73,11.18683011]
[1763390828405,11.18683011,141.77,141.72,11.18683011]
[1763390828594,11.18683011,141.79,141.73,11.18683011]
[1763390829198,11.18683011,141.77,141.72,11.18683011]
[1763390829404,11.18683011,141.76,141.7,0.67]
[1763390829710,11.18683011,141.79,141.74,11.18683011]
[1763390829905,11.18683011,141.76,141.69,9.32]
[1763390830215,9.3,141.8,141.71,11.18683011]
[1763390830423,0.66,141.83,141.74,11.18683011]
[1763390830597,11.18683011,141.82,141.77,11.18683011]
[1763390830795,11.18683011,141.81,141.76,11.18683011]
[1763390830995,0.2,141.84,141.78,11.18683011]
[1763390831310,0.2,141.84,141.79,11.18683011]
[1763390831507,0.2,141.84,141.81,11.18683011]
[1763390831731,0.2,141.84,141.78,9.3]
[1763390831947,0.2,141.84,141.83,11.18683011]
[1763390832295,11.18683011,141.93,141.83,21.6456578]
[1763390832496,0.66,141.98,141.89,11.18683011]
[1763390832696,11.18683011,141.96,141.9,11.18683011]
[1763390832939,11.18683011,141.95,141.89,11.18683011]
[1763390833102,9.3,142.02,141.84,20.48683011]
[1763390833103,11.18683011,141.9,141.84,20.48683011]
[1763390833423,2.0,142.0,141.84,20.48683011]
[1763390833424,11.18683011,141.91,141.85,11.18683011]
[1763390833627,11.18683011,141.9,141.84,20.48683011]
[1763390833869,11.18683011,141.9,141.85,11.18683011]
[1763390834049,9.3,142.01,141.89,11.18683011]
[1763390834212,0.66,141.99,141.9,9.3]
[1763390834409,9.3,142.05,141.91,9.3]
[1763390834615,11.18683011,141.99,141.92,0.67]
[1763390834819,11.18683011,142.0,141.95,11.18683011]
[1763390835143,11.18683011,141.98,141.88,0.67]
[1763390835330,11.18683011,141.96,141.9,11.18683011]
[1763390835527,11.18683011,141.94,141.88,11.85683011]
[1763390835733,11.18683011,141.93,141.88,9.3]
[1763390835926,11.84683011,141.92,141.85,0.67]
[1763390836126,11.84683011,141.92,141.81,9.78882769]
[1763390836127,0.66,141.92,141.81,9.3]
[1763390836354,18.12096,141.93,141.82,0.67]
[1763390836528,18.78096,141.95,141.82,0.67]
[1763390836735,11.18683011,141.9,141.82,0.67]
[1763390836933,18.78096,141.95,141.83,9.78882769]
[1763390837132,11.18683011,141.94,141.84,0.67]
[1763390837327,0.66,141.99,141.91,11.18683011]
[1763390837555,0.66,141.99,141.85,9.78882769]
[1763390837556,11.18683011,141.98,141.92,11.18683011]
[1763390837769,165.4,142.08,141.9,9.78882769]
[1763390838066,0.2,142.11,141.98,11.18683011]
[1763390838067,0.66,142.07,141.98,11.18683011]
[1763390838241,18.12096,142.04,141.91,0.67]
[1763390838445,11.18683011,142.0,141.94,11.18683011]
[1763390838646,9.78882769,142.02,141.87,0.66]
[1763390838859,11.18683011,141.99,141.93,11.18683011]
[1763390839042,11.18683011,142.0,141.94,11.18683011]
[1763390839365,11.18683011,141.99,141.92,11.18683011]
[1763390839550,11.18683011,141.94,141.88,9.3]
[1763390839730,18.12096,141.98,141.88,21.14683011]
[1763390840060,11.18683011,141.94,141.88,21.14683011]
[1763390840263,11.18683011,141.93,141.88,9.96]
[1763390840468,0.69,141.97,141.89,11.84683011]
[1763390840643,11.18683011,141.95,141.89,11.84683011]
[1763390840961,0.69,142.01,141.92,11.18683011]
[1763390841130,0.69,142.01,141.9,0.66]
[1763390841131,11.18683011,141.99,141.93,11.18683011]
[1763390841336,0.69,142.0,141.96,11.18683011]
[1763390841538,0.69,142.05,141.99,11.18683011]
[1763390841737,0.2,142.09,142.0,9.28]
[1763390842038,0.2,142.09,141.95,0.7044734]
[1763390842251,11.18683011,142.04,141.98,11.18683011]
[1763390842463,11.18683011,141.99,141.92,9.94]
[1763390842766,18.12096,142.01,141.93,9.28]
[1763390842940,12.12816683,141.97,141.91,21.40816683]
[1763390843141,12.12816683,141.93,141.86,0.66]
[1763390843362,12.12816683,141.95,141.89,12.12816683]
[1763390843531,18.12096,142.0,141.91,12.12816683]
[1763390843731,12.12816683,141.97,141.91,12.12816683]
[1763390843951,12.12816683,141.96,141.9,12.78816683]
[1763390844175,9.78882769,142.04,141.87,9.28]
[1763390844176,12.12816683,141.97,141.92,12.12816683]
[1763390844465,12.12816683,141.96,141.9,12.12816683]
[1763390844644,12.12816683,141.96,141.88,0.66]
[1763390844645,12.12816683,141.97,141.91,12.12816683]
[1763390844848,12.12816683,141.97,141.85,9.78882769]
[1763390844849,12.12816683,141.92,141.84,17.62]
[1763390845060,18.12096,141.96,141.86,21.40816683]
[1763390845284,18.81096,141.96,141.86,9.28]
[1763390845456,18.12096,141.96,141.87,0.66]
[1763390845955,18.12096,141.96,141.87,12.78816683]
[1763390846153,9.28,142.0,141.9,12.12816683]
[1763390846495,9.28,142.0,141.91,9.28]
[1763390846496,12.12816683,141.96,141.91,9.28]
[1763390847107,12.12816683,141.97,141.92,0.66]
[1763390847551,18.12096,142.01,141.86,9.78882769]
[1763390847749,12.12816683,141.93,141.87,21.40816683]
[1763390847963,12.12816683,141.91,141.87,9.28]
[1763390848166,12.12816683,141.88,141.81,0.66]
[1763390848397,12.12816683,141.84,141.78,12.12816683]
[1763390848909,0.69,141.87,141.77,9.94]
[1763390849260,18.81096,141.87,141.77,22.06816683]
[1763390849458,12.12816683,141.82,141.77,9.28]
[1763390849662,12.12816683,141.87,141.81,12.12816683]
[1763390849878,12.12816683,141.87,141.82,21.40816683]
[1763390850088,12.12816683,141.87,141.73,0.70556692]
[1763390850089,12.12816683,141.84,141.73,0.70556692]
[1763390850296,18.12096,141.86,141.77,12.12816683]
[1763390850493,12.12816683,141.84,141.78,12.12816683]
[1763390850795,11.28,141.94,141.76,0.66]
[1763390850796,0.69,141.91,141.81,12.12816683]
[1763390850956,9.28,141.94,141.83,12.12816683]
[1763390851267,12.12816683,141.91,141.85,12.12816683]
[1763390851474,12.12816683,141.89,141.86,9.28]
[1763390851658,12.12816683,141.89,141.84,9.94]
[1763390852071,12.12816683,141.89,141.85,0.66]
[1763390852395,12.12816683,141.89,141.84,21.40816683]
[1763390852396,12.12816683,141.89,141.84,0.66]
[1763390852558,18.12096,141.94,141.82,12.12816683]
[1763390852559,12.12816683,141.88,141.82,12.12816683]
[1763390852770,18.12096,141.94,141.81,12.12816683]
[1763390852771,12.12816683,141.86,141.81,12.12816683]
[1763390853170,12.12816683,141.85,141.8,9.28]
[1763390853383,12.12816683,141.84,141.8,9.28]
[1763390853777,18.12096,141.86,141.76,12.12816683]
[1763390853968,18.81096,141.86,141.76,21.40816683]
[1763390854292,12.12816683,141.83,141.77,12.78816683]
[1763390854699,12.12816683,141.83,141.78,12.12816683]
[1763390854877,9.28,141.89,141.81,12.12816683]
[1763390855078,12.12816683,141.88,141.83,12.12816683]
[1763390855476,12.12816683,141.89,141.84,0.66]
[1763390855678,0.69,141.9,141.84,12.78816683]
[1763390855679,12.12816683,141.9,141.84,12.78816683]
[1763390855892,12.12816683,141.89,141.84,12.78816683]
[1763390856093,12.12816683,141.9,141.84,12.78816683]
[1763390856411,12.12816683,141.89,141.83,12.12816683]
[1763390856706,12.12816683,141.92,141.87,12.12816683]
[1763390856873,12.12816683,141.92,141.86,21.40816683]
[1763390857282,12.12816683,141.92,141.87,12.12816683]
[1763390857515,0.71,141.96,141.88,12.12816683]
[1763390857672,12.12816683,141.93,141.87,12.12816683]
[1763390857876,12.12816683,141.9,141.86,9.28]
[1763390858088,12.12816683,141.91,141.86,9.28]
[1763390858385,12.12816683,141.89,141.86,9.28]
[1763390858589,18.83096,141.94,141.86,9.28]
[1763390858784,12.12816683,141.9,141.86,9.28]
[1763390859112,0.71,142.07,141.89,30.24912683]
[1763390859268,12.12816683,142.06,141.94,9.78882769]
[1763390859590,12.12816683,142.08,142.03,12.12816683]
[1763390859977,0.2,142.09,142.07,12.12816683]
[1763390860198,0.2,142.09,142.08,12.12816683]
[1763390860626,0.2,142.09,142.01,9.26]
[1763390860627,12.32816683,142.09,142.0,0.71]
[1763390860798,12.32816683,142.09,141.96,21.38816683]
[1763390860799,12.12816683,142.02,141.96,21.38816683]
[1763390860994,9.26,142.04,141.96,0.71]
[1763390861195,9.97,142.08,141.98,12.12816683]
[1763390861422,9.97,142.08,142.0,12.12816683]
[1763390861727,0.2,142.09,142.01,0.70417576]
[1763390861930,0.2,142.09,142.08,12.12816683]
[1763390862097,0.2,142.15,142.09,9.78882769]
[1763390862294,0.2,142.15,142.14,12.12816683]
[1763390862922,0.2,142.15,142.12,0.71]
[1763390863124,0.2,142.15,142.14,12.12816683]
[1763390863511,0.2,142.15,142.13,12.12816683]
[1763390863822,12.83816683,142.14,142.05,12.12816683]
[1763390864007,12.83816683,142.14,142.04,12.12816683]
[1763390864008,12.12816683,142.09,142.04,12.12816683]
[1763390864212,12.12816683,142.07,142.02,21.38816683]
[1763390864415,12.12816683,142.06,141.99,0.71]
[1763390864623,12.12816683,142.06,142.01,12.12816683]
[1763390864930,12.12816683,142.07,142.02,12.12816683]
[1763390865113,12.12816683,142.1,142.05,12.12816683]
[1763390865429,12.12816683,142.09,142.02,9.26]
[1763390865633,12.12816683,142.07,142.02,9.26]
[1763390866011,12.12816683,142.08,142.02,9.26]
[1763390866211,12.83816683,142.09,142.04,12.12816683]
[1763390866396,27.38096,142.12,142.05,12.12816683]
[1763390866737,12.12816683,142.1,142.05,12.12816683]
[1763390867430,12.12816683,142.11,142.06,12.12816683]
[1763390867725,12.12816683,142.08,142.02,9.26]
[1763390868027,27.38096,142.12,141.99,0.71]
[1763390868028,12.12816683,142.07,141.99,0.71]
[1763390868216,12.12816683,142.04,141.99,12.12816683]
[1763390868538,12.12816683,142.01,141.96,12.12816683]
[1763390868834,12.83816683,142.11,142.01,9.78882769]
[1763390869002,12.12816683,142.08,142.0,9.26]
[1763390869331,12.12816683,142.05,142.0,12.12816683]
[1763390869533,12.12816683,142.06,141.99,0.71]
[1763390869719,12.12816683,142.06,142.01,12.12816683]
[1763390870325,0.71,142.05,141.99,12.12816683]
[1763390870501,18.12096,142.08,141.99,12.12816683]
[1763390870701,22.09816683,142.07,142.02,12.12816683]
[1763390871226,12.83816683,142.06,142.01,12.12816683]
[1763390871453,12.12816683,142.03,141.97,12.12816683]
[1763390871730,12.12816683,142.03,141.98,12.12816683]
[1763390871931,0.71,142.05,141.95,0.71]
[1763390872233,12.83816683,142.05,142.0,12.12816683]
[1763390872403,12.12816683,142.04,141.99,12.12816683]
[1763390872734,12.12816683,142.02,141.95,0.71]
[1763390873042,12.12816683,142.02,141.97,12.12816683]
[1763390873329,12.83816683,142.02,141.97,12.12816683]
[1763390873714,12.83816683,142.02,141.95,0.71]
[1763390873913,12.12816683,142.01,141.96,12.12816683]
[1763390874113,12.12816683,141.99,141.93,12.12816683]
[1763390874434,9.24,142.02,141.97,12.12816683]
[1763390874613,12.12816683,142.03,141.95,0.71]
[1763390874813,0.71,142.01,141.97,12.12816683]
[1763390875019,12.12816683,142.03,141.98,12.12816683]
[1763390875248,9.24,142.05,141.98,12.12816683]
[1763390875448,0.71,142.02,141.98,12.12816683]
[1763390875959,0.71,142.02,141.94,9.24]
[1763390875960,12.12816683,141.99,141.94,12.12816683]
[1763390876341,9.95,142.02,141.95,12.12816683]
[1763390876527,12.12816683,142.0,141.95,12.12816683]
[1763390876733,12.12816683,141.97,141.92,12.12816683]
[1763390876929,12.12816683,141.96,141.89,9.24]
[1763390877145,12.12816683,141.98,141.93,12.12816683]
[1763390877552,0.71,142.02,141.96,12.12816683]
[1763390877736,22.07816683,142.02,141.97,12.12816683]
[1763390877940,12.12816683,141.99,141.94,12.12816683]
[1763390878241,12.83816683,142.01,141.96,12.12816683]
[1763390878442,22.07816683,142.01,141.96,12.12816683]
[1763390878854,12.12816683,142.02,141.97,12.12816683]
[1763390879046,21.36816683,142.03,141.98,12.12816683]
[1763390879336,12.83816683,142.02,141.93,9.95]
[1763390879542,12.12816683,141.99,141.93,9.95]
[1763390879756,12.12816683,141.99,141.94,12.12816683]
[1763390879964,0.71,142.01,141.94,12.12816683]
[1763390880261,0.71,142.04,141.98,12.12816683]
[1763390880560,0.71,142.08,141.99,9.24]
[1763390880751,0.71,142.08,142.0,0.71]
[1763390880752,12.12816683,142.07,142.0,0.71]
[1763390880951,0.71,142.06,141.97,12.12816683]
[1763390881166,12.12816683,142.07,142.02,12.12816683]
[1763390881367,9.95,142.09,142.04,12.12816683]
[1763390881368,12.12816683,142.09,142.04,12.12816683]
[1763390881534,12.12816683,142.05,141.97,0.71]
[1763390881734,18.83096,142.08,141.97,0.71]
[1763390881735,0.71,142.08,142.03,12.12816683]
[1763390882033,0.71,142.07,142.01,12.12816683]
[1763390882235,18.12096,142.03,141.91,0.71]
[1763390882434,12.12816683,141.95,141.9,12.12816683]
[1763390882662,18.12096,141.97,141.88,12.12816683]
[1763390882866,18.12096,142.01,141.93,12.12816683]
[1763390883063,18.12096,142.01,141.89,0.71]
[1763390883064,18.83096,142.01,141.9,9.24]
[1763390883261,12.12816683,141.96,141.91,0.71]
[1763390883462,12.12816683,141.94,141.89,12.12816683]
[1763390883635,12.12816683,141.93,141.87,0.71]
[1763390883832,0.71,141.92,141.84,9.95]
[1763390884075,9.24,141.91,141.82,0.71]
[1763390884432,12.12816683,141.88,141.84,12.12816683]
[1763390884634,31.07882769,141.97,141.82,0.71]
[1763390884635,0.71,141.93,141.86,12.12816683]
[1763390884867,0.71,141.93,141.82,0.71]
[1763390884868,12.83816683,141.93,141.88,12.12816683]
[1763390885169,12.12816683,141.9,141.83,9.24]
[1763390885469,12.83816683,141.92,141.87,12.12816683]
[1763390885653,12.83816683,141.92,141.84,0.71]
[1763390885654,0.71,141.92,141.88,12.12816683]
[1763390885853,12.12816683,141.94,141.84,0.71]
[1763390886057,12.83816683,141.96,141.91,12.12816683]
[1763390886253,12.12816683,141.95,141.9,12.12816683]
[1763390886467,12.12816683,141.94,141.87,0.67]
[1763390886774,12.12816683,141.94,141.89,12.12816683]
[1763390886983,12.84816683,141.93,141.83,27.36096]
[1763390887138,12.12816683,141.89,141.82,0.67]
[1763390887338,12.12816683,141.87,141.79,9.91]
[1763390887655,12.12816683,141.89,141.84,12.12816683]
[1763390887849,12.12816683,141.89,141.83,12.12816683]
[1763390888177,12.12816683,141.87,141.82,12.12816683]
[1763390888335,12.84816683,141.88,141.8,0.67]
[1763390888537,12.84816683,141.88,141.83,12.12816683]
[1763390888742,0.72,141.91,141.85,12.12816683]
[1763390888957,12.12816683,141.9,141.85,12.12816683]
[1763390889169,12.84816683,141.89,141.84,12.12816683]
[1763390889474,12.12816683,141.89,141.84,12.12816683]
[1763390889658,27.36096,141.92,141.83,12.12816683]
[1763390889659,12.84816683,141.88,141.83,12.12816683]
[1763390889865,12.12816683,141.9,141.85,12.12816683]
[1763390890177,12.12816683,141.89,141.84,12.12816683]
[1763390890380,12.12816683,141.9,141.85,12.12816683]
[1763390890540,12.12816683,141.88,141.83,12.12816683]
[1763390890744,12.12816683,141.86,141.81,12.12816683]
[1763390891270,12.12816683,141.86,141.74,0.92014181]
[1763390891271,0.72,141.85,141.78,12.12816683]
[1763390891581,18.12096,141.9,141.78,12.12816683]
[1763390891582,12.12816683,141.9,141.84,12.12816683]
[1763390891745,12.12816683,141.93,141.88,12.12816683]
[1763390892152,0.72,141.92,141.88,12.12816683]
[1763390892375,0.72,141.93,141.89,12.12816683]
[1763390892676,9.24,141.95,141.82,9.24]
[1763390892677,12.84816683,141.92,141.82,9.24]
[1763390892891,12.12816683,141.87,141.79,1.93593088]
[1763390893043,12.12816683,141.85,141.79,1.93593088]
[1763390893246,12.12816683,141.85,141.8,12.12816683]
[1763390893446,12.12816683,141.83,141.79,1.93593088]
[1763390893677,12.84816683,141.83,141.79,1.93593088]
[1763390893843,12.12816683,141.85,141.79,14.06409771]
[1763390894047,0.72,141.86,141.79,1.93593088]
[1763390894048,12.12816683,141.83,141.79,1.93593088]
[1763390894379,18.12096,141.87,141.79,1.93593088]
[1763390894380,12.12816683,141.81,141.79,1.93593088]
[1763390894677,9.24,141.85,141.79,1.93593088]
[1763390894876,0.72,141.84,141.8,12.12816683]
[1763390895064,12.12816683,141.82,141.79,1.93593088]
[1763390895248,0.72,141.84,141.79,1.93593088]
[1763390895451,12.12816683,141.82,141.79,1.93593088]
[1763390895663,12.12816683,141.8,141.79,1.93593088]
[1763390895865,21.36816683,141.8,141.79,1.21593088]
[1763390896176,12.12816683,141.82,141.79,1.21593088]
[1763390896368,12.83816683,141.84,141.79,13.34409771]
[1763390896678,9.24,141.85,141.8,12.12816683]
[1763390896850,12.12816683,141.84,141.79,13.34409771]
[1763390897048,12.12816683,141.84,141.79,1.21593088]
[1763390897271,9.24,141.88,141.81,12.12816683]
[1763390897472,12.12816683,141.86,141.81,12.12816683]
[1763390897677,21.36816683,141.88,141.83,12.12816683]
[1763390897887,12.12816683,141.89,141.84,12.12816683]
[1763390898062,12.12816683,141.88,141.83,12.12816683]
[1763390898369,12.12816683,141.89,141.83,12.12816683]
[1763390898556,12.12816683,141.89,141.82,0.67]
[1763390898757,9.78882769,141.96,141.86,12.12816683]
[1763390898993,12.12816683,141.92,141.86,12.12816683]
[1763390899181,12.12816683,141.91,141.85,12.12816683]
[1763390899386,9.04015269,142.05,141.89,12.12816683]
[1763390899573,12.12816683,141.94,141.89,12.12816683]
[1763390899895,12.12816683,141.91,141.83,9.91]
[1763390900070,12.12816683,141.9,141.85,12.12816683]
[1763390900287,0.71,141.96,141.84,0.67]
[1763390900602,12.12816683,141.95,141.9,12.12816683]
[1763390900811,12.12816683,141.93,141.87,0.67]
[1763390900979,12.12816683,141.93,141.87,12.79816683]
[1763390901177,12.12816683,141.93,141.88,12.12816683]
[1763390901383,12.12816683,141.91,141.85,12.12816683]
[1763390901605,18.12096,141.95,141.89,12.12816683]
[1763390901775,12.12816683,141.94,141.88,12.12816683]
[1763390901971,12.12816683,141.94,141.89,12.12816683]
[1763390902175,0.71,141.96,141.84,0.67]
[1763390902176,12.12816683,141.96,141.91,12.12816683]
[1763390902375,12.12816683,141.97,141.92,12.12816683]
[1763390902588,12.12816683,141.98,141.92,12.12816683]
[1763390902791,0.71,141.98,141.9,12.12816683]
[1763390902986,12.12816683,141.95,141.9,12.12816683]
[1763390903184,9.24,142.01,141.91,0.67]
[1763390903408,12.12816683,142.0,141.91,0.67]
[1763390903593,0.71,142.05,141.91,0.67]
[1763390903793,12.12816683,142.04,141.92,27.90978769]
[1763390904005,12.12816683,142.04,141.99,12.12816683]
[1763390904182,12.12816683,142.0,141.94,12.12816683]
[1763390904385,12.12816683,141.95,141.86,19.00882769]
[1763390904602,12.12816683,141.93,141.86,9.89]
[1763390904793,9.22,141.95,141.84,0.67]
[1763390904999,11.1557688,141.91,141.86,11.1557688]
[1763390905209,11.1557688,141.91,141.85,11.1557688]
[1763390905382,11.1557688,141.88,141.83,11.1557688]
[1763390905579,11.1557688,141.87,141.82,11.1557688]
[1763390906007,11.1557688,141.85,141.8,20.3757688]
[1763390906177,11.1557688,141.85,141.8,9.22]
[1763390906381,11.1557688,141.87,141.82,11.1557688]
[1763390906608,9.93,141.9,141.81,11.8257688]
[1763390906609,11.1557688,141.86,141.81,11.8257688]
[1763390906827,11.1557688,141.89,141.81,0.67]
[1763390906979,11.1557688,141.89,141.84,11.1557688]
[1763390907180,11.1557688,141.89,141.8,9.22]
[1763390907181,11.1557688,141.87,141.8,9.22]
[1763390907415,11.1557688,141.87,141.81,11.1557688]
[1763390907716,11.1557688,141.89,141.82,0.67]
[1763390907916,9.93,141.9,141.82,11.1557688]
[1763390908080,11.1557688,141.87,141.82,11.1557688]
[1763390908279,9.93,141.9,141.85,11.1557688]
[1763390908280,11.1557688,141.9,141.85,11.1557688]
[1763390908682,11.1557688,141.91,141.86,11.1557688]
[1763390908893,9.22,141.94,141.89,11.1557688]
[1763390909319,11.1557688,141.95,141.89,11.8257688]
[1763390909518,11.1557688,141.93,141.87,11.1557688]
[1763390909677,0.71,141.94,141.86,11.1557688]
[1763390909883,11.1557688,141.87,141.8,11.1557688]
[1763390910086,18.12096,141.89,141.79,1.21593088]
[1763390910087,11.1557688,141.82,141.79,1.21593088]
[1763390910582,11.1557688,141.81,141.79,1.21593088]
[1763390910894,18.12096,141.86,141.79,1.21593088]
[1763390910895,11.1557688,141.84,141.79,12.37169968]
[1763390911311,18.83096,141.88,141.8,11.8257688]
[1763390911605,11.1557688,141.85,141.79,12.37169968]
[1763390911808,11.1557688,141.84,141.79,12.37169968]
[1763390912281,0.71,141.87,141.79,1.21593088]
[1763390912480,11.1557688,141.84,141.79,1.21593088]
[1763390912688,11.1557688,141.83,141.79,1.21593088]
[1763390913110,50.0,141.99,141.79,1.21593088]
[1763390913111,11.1557688,141.85,141.8,0.67]
[1763390913286,28.05096,141.88,141.81,11.1557688]
[1763390913486,11.1557688,141.82,141.79,1.21593088]
[1763390913684,18.12096,141.85,141.79,1.21593088]
[1763390913917,11.1557688,141.81,141.79,1.21593088]
[1763390914097,11.1557688,141.89,141.8,11.8257688]
[1763390914293,0.71,141.91,141.85,11.1557688]
[1763390914494,11.1557688,141.9,141.85,11.1557688]
[1763390914709,9.22,141.92,141.86,11.1557688]
[1763390914710,11.1557688,141.91,141.86,11.1557688]
[1763390915108,11.8657688,141.9,141.85,11.1557688]
[1763390915285,11.8657688,141.9,141.83,9.22]
[1763390915286,11.1557688,141.89,141.83,20.3757688]
[1763390915487,11.1557688,141.89,141.83,9.22]
[1763390915813,11.1557688,141.89,141.84,11.1557688]
[1763390916225,11.1557688,141.85,141.79,1.21593088]
[1763390916386,11.1557688,141.83,141.79,1.21593088]
[1763390916586,11.1557688,141.82,141.79,1.21593088]
[1763390916887,11.1557688,141.81,141.79,1.21593088]
[1763390917083,0.69,141.83,141.79,1.21593088]
[1763390917286,9.22,141.84,141.79,1.21593088]
[1763390917287,9.22,141.84,141.79,1.92593088]
[1763390917484,9.22,141.84,141.8,11.8657688]
[1763390917709,11.1557688,141.86,141.8,11.8657688]
[1763390917908,11.1557688,141.82,141.79,1.21593088]
[1763390918085,11.1557688,141.8,141.79,1.21593088]
[1763390918281,11.1557688,141.8,141.79,0.42593088]
[1763390918787,7.78525035,141.8,141.79,0.42593088]
[1763390919624,9.78525035,141.93,141.79,8.92118123]
[1763390919787,7.78525035,141.84,141.79,8.92118123]
[1763390920189,7.78525035,141.84,141.79,1.13593088]
[1763390920399,27.34096,141.87,141.79,1.13593088]
[1763390920400,18.12096,141.83,141.79,0.42593088]
[1763390920623,7.78525035,141.8,141.79,0.42593088]
[1763390920926,7.78525035,141.8,141.72,0.1]
[1763390920927,17.57407804,141.8,141.72,0.1]
[1763390921128,7.78525035,141.73,141.72,0.1]
[1763390922241,7.78525035,141.73,141.64,0.1]
[1763390922242,18.12096,141.7,141.64,0.1]
[1763390922437,35.12621035,141.7,141.64,0.1]
[1763390922801,48.32733289,141.7,141.64,0.1]
[1763390923000,38.5385052,141.7,141.64,0.1]
[1763390923202,18.12096,141.74,141.67,11.9075452]
[1763390923401,11.1975452,141.7,141.64,11.2975452]
[1763390923707,18.12096,141.74,141.67,0.71]
[1763390924060,11.1975452,141.72,141.67,0.71]
[1763390924340,11.1975452,141.71,141.65,0.71]
[1763390924638,11.1975452,141.72,141.69,0.81]
[1763390924997,11.1975452,141.72,141.69,0.1]
[1763390925204,11.1975452,141.72,141.69,0.81]
[1763390925409,11.1975452,141.72,141.69,0.1]
[1763390925643,11.1975452,141.71,141.69,0.1]
[1763390926133,2.0,141.81,141.7,0.71]
[1763390926308,11.1975452,141.74,141.7,0.71]
[1763390926928,11.1975452,141.73,141.7,0.71]